Cogmind - Beta 13 @@@ ROGUE MODE // 2024.04.02 @ 10:46:15 Player: kitty Result: Destroyed by H-61 Shepherd with Heavy Assault Cannon Performance ------------- Evolutions (2) 1000 Regions Visited (5) 1000 Robots Destroyed (26) 130 Value Destroyed (452) 452 Prototype IDs (2) 40 Alien Tech Used (0) 0 Bonus (300) 300 TOTAL SCORE: 2922 Bonus ------- Aligned with FarCom 300 Cogmind --------- Core Integrity 0/550 Matter 40/300 Energy 109/160 System Corruption 0% Temperature Cool (9) Movement Core (850) Ox16 Location -8/Materials Parts ------- > --- POWER (1) -------- Light Nuclear Core > --- PROPULSION (4) --- (None) > --- UTILITY (4) ------ High-capacity Storage Unit > --- WEAPON (2) ------- Heavy Mace Heavy Mace > --- INVENTORY (20) --- Light Ion Engine Light Ion Engine Experimental Sensor Array Improved Terrain Scanner Terrain Scan Processor Long-range Tractor Beam Supersonic Drone Bay (1/1) Peak State ------------ > --- POWER ------------ Ion Engine > --- PROPULSION ------- Wheel Wheel Wheel Wheel > --- UTILITY ---------- High-capacity Storage Unit Experimental Sensor Array Light Armor Plating Supersonic Drone Bay > --- WEAPON ----------- Assault Rifle Rocket Launcher > --- INVENTORY -------- Light Ion Engine Light Ion Engine Light Ion Engine Light Ion Engine Light Treads Aluminum Leg Aluminum Leg Wheel Wheel Medium Storage Unit Medium Battery Improved Terrain Scanner Terrain Scan Processor Seismic Detector Shock Bomb Launcher [Rating: 29] Favorites ----------- Power Light Ion Engine Engine Light Ion Engine Power Core Light Nuclear Core Propulsion Wheel Treads Light Treads Leg Aluminum Leg Wheel Wheel Utility Light Armor Plating Device Cryofiber Web Storage High-capacity Storage Unit Hackware Hacking Suite Protection Light Armor Plating Weapon Assault Rifle Energy Gun EM Pulse Gun Ballistic Gun Assault Rifle Launcher Rocket Launcher Impact Weapon Heavy Mace Build | -11 -10 -10 -10 -9 -8 ------- Run | Yrd Mat Min Exi Min Mat Slots Evolved 4 | . . . . . 4 Power . | . . . . . . Propulsion 2 | . . . . . 2 Utility 2 | . . . . . 2 Weapon . | . . . . . . Parts Attached 57 | 12 1 . 3 11 30 Power 15 | 7 . . . 3 5 Engine 14 | 7 . . . 3 4 Core 1 | . . . . . 1 Reactor . | . . . . . . Propulsion 14 | 2 . . . 2 10 Treads 2 | 2 . . . . . Leg 5 | . . . . 2 3 Wheel 7 | . . . . . 7 Hover . | . . . . . . Flight . | . . . . . . Utility 15 | 1 1 . 3 2 8 Device 4 | . . . 1 . 3 Storage 5 | 1 . . 2 1 1 Processor . | . . . . . . Hackware 1 | . . . . . 1 Protection 5 | . 1 . . 1 3 Artifact . | . . . . . . Weapon 13 | 2 . . . 4 7 Energy Gun 3 | 1 . . . 1 1 Energy Cannon . | . . . . . . Ballistic Gun 4 | 1 . . . 1 2 Ballistic Cannon . | . . . . . . Launcher 4 | . . . . 2 2 Special Weapon . | . . . . . . Impact Weapon 2 | . . . . . 2 Slashing Weapon . | . . . . . . Piercing Weapon . | . . . . . . Special Melee Weapon . | . . . . . . Unidentified Prototypes 2 | . . . . . 2 Parts Lost 26 | . . . . 6 20 Power 3 | . . . . 1 2 Propulsion 9 | . . . . 1 8 Utility 6 | . . . . 1 5 Weapon 8 | . . . . 3 5 Highest Loss Streak 20 | . . . . 3 20 To Critical Strikes . | . . . . . . Average Slot Usage (%) 97 | . 90 100 100 96 97 Engine 11 | . 14 14 14 13 8 Treads 12 | . 28 28 28 14 . Leg 3 | . . . . 13 . Wheel 15 | . . . . . 35 Device 8 | . . . 9 7 12 Storage 11 | . 14 14 14 14 8 Hackware 1 | . . . . . 4 Protection 7 | . 5 14 4 6 8 Energy Gun 6 | . 14 14 14 8 . Ballistic Gun 9 | . 14 14 14 5 8 Launcher 7 | . . . . 11 8 Naked Turns . | . . . . . . Heaviest Build 56 | 12 15 15 20 54 56 Greatest Support 40 | 40 40 40 40 40 40 Greatest Overweight (x) 4 | . . . . 2 4 Average Overweight (x) . | . . . . 1 1 Largest Inventory Capacity 20 | 8 8 8 10 20 20 Average Capacity 15 | 7 8 8 9 17 19 Most Carried 20 | 3 6 6 9 20 20 Average Carried 12 | 1 4 6 7 11 17 Final Capacity 20 | 8 8 8 10 20 20 Final Carried 18 | 3 6 6 9 18 7 Class Distribution -------------------- 57% | Mutant 23% | Scavenger-Mutant 18% | Scavenger-Skirmisher Dominant Class ---------------- Mutant | -10/Materials Mutant | -10/Mines Mutant | -10/Exiles Mutant | -9/Mines Scavenger-Mutant | -8/Materials Resources | -11 -10 -10 -10 -9 -8 ----------- Run | Yrd Mat Min Exi Min Mat Matter Collected 584 | 320 10 . . 223 31 Remotely . | . . . . . . Salvage Created 871 | 100 137 . . 411 223 Parts 48 | 6 10 . . 22 10 Haulers Intercepted . | . . . . . . Recyclers Shooed 3 | . . . . 2 1 Parts Field Recycled . | . . . . . . Retrieved Matter . | . . . . . . Parts Self-Destructed . | . . . . . . Prevented . | . . . . . . Kills | -11 -10 -10 -10 -9 -8 ------- Run | Yrd Mat Min Exi Min Mat Combat Hostiles Destroyed 15 | . 3 . . 7 5 Guns 6 | . 3 . . 3 . AOE 9 | . . . . 4 5 Classes Destroyed 8 | 2 2 . . 3 1 Worker 2 | . . . . 1 1 Builder 2 | . 1 . . 1 . Tunneler 2 | 1 . . . 1 . Recycler 6 | 1 . . . 3 2 Swarmer 7 | . . . . 4 3 Grunt 6 | . 3 . . 2 1 Specialist 1 | . . . . . 1 Assembled 1 | . . . . 1 . Best Kill Streak 4 | 1 3 . . 4 4 Combat Bots Only 4 | . 2 . . 4 3 Max Kills in Single Turn 3 | 1 1 . . 2 3 Gunslinging . | . . . . . . Exploded 3 | . . . . 2 3 Melee . | . . . . . . Uniques/NPCs Destroyed . | . . . . . . Combat | -11 -10 -10 -10 -9 -8 -------- Run | Yrd Mat Min Exi Min Mat Hostile Shots Fired 207 | . 7 . . 54 146 Missed 57 | . 2 . . 11 44 Damage Taken 2631 | . 70 . . 607 1954 Core 752 | . . . . 157 595 Absorbed by Shields . | . . . . . . Regen/Repaired (Parts) 250 | . 5 . . . 245 Core Remaining (%) 68 | 100 . . . 37 . Volleys Fired 63 | 4 13 . . 34 12 Largest 2 | 1 1 . . 2 2 Hottest 80 | 40 40 . . 80 66 Shots Fired 77 | 4 13 . . 47 13 Gun 62 | 4 13 . . 41 4 Cannon . | . . . . . . Launcher 15 | . . . . 6 9 Special . | . . . . . . Kinetic 6 | . . . . 4 2 Thermal . | . . . . . . Explosive 13 | . . . . 6 7 Electromagnetic 58 | 4 13 . . 37 4 Robot Hit Streak 9 | 4 7 . . 7 9 Robot Miss Streak 3 | . 3 . . 2 3 Penetration Max . | . . . . . . Secondary Targets . | . . . . . . Shots Hit Robots 47 | 4 9 . . 25 9 Core Hits 44 | 2 5 . . 21 16 Critical Kills . | . . . . . . Critical Parts Destroyed . | . . . . . . Critical Strikes . | . . . . . . Melee Attacks 4 | . . . . . 4 Impact 4 | . . . . . 4 Slashing . | . . . . . . Piercing . | . . . . . . Sneak Attacks . | . . . . . . Combat Hostiles . | . . . . . . Follow-up Attacks . | . . . . . . Damage Inflicted 1578 | 55 143 . . 593 787 Guns 563 | 55 119 . . 351 38 Cannons . | . . . . . . Explosions 890 | . 20 . . 232 638 Melee 111 | . . . . . 111 Ramming 14 | . 4 . . 10 . Kinetic 76 | . . . . 52 24 Thermal 20 | . 20 . . . . Explosive 768 | . . . . 232 536 Electromagnetic 589 | 55 119 . . 299 116 Impact 111 | . . . . . 111 Slashing . | . . . . . . Piercing . | . . . . . . Highest Corruption 1 | . 1 1 1 1 . Average Corruption 1 | . 1 1 1 1 . Corruption Purged . | . . . . . . Corruption Blocked . | . . . . . . Effects 23 | . . 4 5 14 . Message Errors 5 | . . 1 3 1 . Matter Fused 5 | . . . 1 4 . Heat Flow Errors 3 | . . 1 . 2 . Energy Discharges 2 | . . . . 2 . Parts Fused 1 | . . . . 1 . Data Loss (minor) 4 | . . 1 . 3 . Data Loss (major) 2 | . . 1 1 . . Misfires 1 | . . . . 1 . Overload Shots . | . . . . . . Overflow Damage . | . . . . . . Projectiles . | . . . . . . Explosions . | . . . . . . Melee . | . . . . . . Knockbacks 1 | . . . . . 1 Impact 1 | . . . . . 1 Kinetic . | . . . . . . Secondary . | . . . . . . Self-Inflicted Damage 123 | . 18 . . 21 84 Shots 4 | . 1 . . 1 2 Rammed 2 | . 2 . . . . Targets Rammed 6 | . 3 . . 3 . Kicked 3 | . . . . 3 . Crushed 1 | . 1 . . . . Highest Temperature 216 | . 36 148 . 216 5 Average Temperature 65 | . 17 76 . 76 2 Received Heat Transfer 447 | . 30 . . 165 252 Siege Activations . | . . . . . . Robots Corrupted 1 | . . . . 1 . Combat Hostiles . | . . . . . . Parts Fried 2 | . . . . 2 . Impact Corruptions . | . . . . . . Robots Melted . | . . . . . . Combat Hostiles . | . . . . . . Parts Melted . | . . . . . . Heat Transferred 50 | . 50 . . . . Parts Sabotaged . | . . . . . . Parts Stolen . | . . . . . . Parts Stripped . | . . . . . . Power Chain Reactions 1 | . 1 . . . . Alert | -11 -10 -10 -10 -9 -8 ------- Run | Yrd Mat Min Exi Min Mat Peak Influence 152 | 10 152 . . 96 83 Initial 6 | . 6 . . . . Average 16 | 3 70 . . 26 2 Maximum Alert Level . | . . . . . . Low Security (%) 100 | 100 100 100 . 100 100 Level 1 . | . . . . . . Level 2 . | . . . . . . Level 3 . | . . . . . . Level 4 . | . . . . . . Level 5 . | . . . . . . High Security . | . . . . . . Max Security . | . . . . . . Squads Dispatched 4 | . 1 . . . 3 Investigation . | . . . . . . Extermination . | . . . . . . Reinforcement 4 | . 1 . . . 3 Assault . | . . . . . . Garrison . | . . . . . . Intercept . | . . . . . . Searches Triggered . | . . . . . . Construction Impeded . | . . . . . . Haulers Reinforced . | . . . . . . Active Scanning Responses . | . . . . . . Cargo Convoy Interrupts . | . . . . . . Stealth | -11 -10 -10 -10 -9 -8 --------- Run | Yrd Mat Min Exi Min Mat Distress Signals 2 | . 1 . . 1 . Communications Jammed . | . . . . . . Distress Signals . | . . . . . . Times Spotted 33 | . 7 . . 11 15 Peak Tracking Total 8 | . 2 . . 4 8 Tactical Retreats 2 | . 1 . . 1 . Traps | -11 -10 -10 -10 -9 -8 ------- Run | Yrd Mat Min Exi Min Mat Traps Triggered 5 | . 1 . . . 4 Indirectly . | . . . . . . Trap Hack Attempts . | . . . . . . Triggered . | . . . . . . Disarmed . | . . . . . . Reprogrammed . | . . . . . . Reused . | . . . . . . Traps Extracted . | . . . . . . Installed . | . . . . . . Triggered . | . . . . . . Machines | -11 -10 -10 -10 -9 -8 ---------- Run | Yrd Mat Min Exi Min Mat Machines Disabled 2 | . . . . . 2 Max in Single Turn 1 | . . . . . 1 Machines Repaired . | . . . . . . Machines Dismantled . | . . . . . . Machines Sabotaged . | . . . . . . Overloaded Fab Kills . | . . . . . . Hacking | -11 -10 -10 -10 -9 -8 --------- Run | Yrd Mat Min Exi Min Mat Machines Accessed 10 | . 2 . 4 . 4 Terminals 4 | . 1 . . . 3 Fabricators . | . . . . . . Repair Stations 2 | . 1 . . . 1 Recycling Units . | . . . . . . Scanalyzers . | . . . . . . Garrison Access . | . . . . . . Total Hacks 63 | . 5 . 49 . 9 Successful 58 | . 4 . 49 . 5 Failed 5 | . 1 . . . 4 Catastrophic 1 | . . . . . 1 Database Lockouts . | . . . . . . Manual 8 | . . . 5 . 3 Terminals 7 | . 3 . . . 4 Fabricators . | . . . . . . Repair Stations 7 | . 2 . . . 5 Recycling Units . | . . . . . . Scanalyzers . | . . . . . . Garrison Access . | . . . . . . Terminal Hacks 53 | . 2 . 49 . 2 Record 53 | . 2 . 49 . 2 Fabricator Hacks . | . . . . . . Repair Station Hacks 5 | . 2 . . . 3 Scan Component 3 | . 1 . . . 2 Repair 2 | . 1 . . . 1 Recycling Unit Hacks . | . . . . . . Scanalyzer . | . . . . . . Garrison Access Hacks . | . . . . . . Unauthorized Hacks . | . . . . . . Terminals . | . . . . . . Fabricators . | . . . . . . Repair Stations . | . . . . . . Recycling Units . | . . . . . . Scanalyzers . | . . . . . . Garrison Access . | . . . . . . Data Cores Recovered . | . . . . . . Used . | . . . . . . Hacking Detections 5 | . 1 . . . 4 Full Trace Events 2 | . 1 . . . 1 Feedback Events . | . . . . . . Feedback Blocked . | . . . . . . Robot Schematics Acquired . | . . . . . . Robots Built . | . . . . . . Authchips . | . . . . . . Time . | . . . . . . Total Robot Build Rating . | . . . . . . Part Schematics Acquired . | . . . . . . Parts Built . | . . . . . . Authchips . | . . . . . . Time . | . . . . . . Total Part Build Rating . | . . . . . . Parts Repaired 2 | . 1 . . . 1 Time 52 | . 26 . . . 26 Parts Recycled . | . . . . . . Recycled Matter . | . . . . . . Retrieved Matter . | . . . . . . Retrieved Components . | . . . . . . Parts Scanalyzed . | . . . . . . Part Schematics Acquired . | . . . . . . Parts Damaged . | . . . . . . Bothacking | -11 -10 -10 -10 -9 -8 ------------ Run | Yrd Mat Min Exi Min Mat Used RIF Installer . | . . . . . . Robots Hacked . | . . . . . . Non-combat . | . . . . . . Combat . | . . . . . . Robot Hacks Applied . | . . . . . . Relay Couplers Released . | . . . . . . Fabnet Peak Effective % . | . . . . . . Robots Rewired . | . . . . . . Allies Hacked . | . . . . . . Hacks Repelled . | . . . . . . Allies | -11 -10 -10 -10 -9 -8 -------- Run | Yrd Mat Min Exi Min Mat Total Allies . | . . . . . . Largest Group . | . . . . . . Highest-Rated Group . | . . . . . . Highest-Rated Ally . | . . . . . . Total Orders . | . . . . . . Ally Attacks . | . . . . . . Total Damage . | . . . . . . Kills . | . . . . . . Allies Corrupted . | . . . . . . Allies Melted . | . . . . . . Intel | -11 -10 -10 -10 -9 -8 ------- Run | Yrd Mat Min Exi Min Mat Robot Analysis Total . | . . . . . . Derelict Logs Recovered . | . . . . . . Drone Launches . | . . . . . . Drone Recoveries . | . . . . . . Exploration | -11 -10 -10 -10 -9 -8 ------------- Run | Yrd Mat Min Exi Min Mat Turns Passed 6795 | 195 637 320 963 1722 2958 Spaces Moved 2471 | 127 356 201 595 685 507 Core 33 | 33 . . . . . Treads 1637 | 94 356 201 595 391 . Legs 302 | . . . . 294 8 Wheels 499 | . . . . . 499 Hover . | . . . . . . Flight . | . . . . . . Fastest Speed 50 | 50 160 160 160 160 95 Average Speed 162 | 131 160 160 160 220 96 Slowest Speed 260 | 160 160 160 160 260 190 Overloaded Moves . | . . . . . . Propulsion Burnouts . | . . . . . . Robots Hopped . | . . . . . . Cave-ins Triggered . | . . . . . . Exploration Rate (%) 50 | 8 53 50 73 83 37 Regions Visited 5 Branch Regions 3 Pre-discovered Areas 1 | . . . 1 . . Known Exits Taken . | . . . . . . Unknown Exits Taken 5 | 1 1 1 1 1 . Scrap Searched 2 | . . 1 . 1 . Spaces Dug . | . . . . . . Terrain Destroyed 77 | . 4 . . 31 42 Melee . | . . . . . . Projectile . | . . . . . . AOE 77 | . 4 . . 31 42 Terrain Rammed . | . . . . . . Walls Destroyed . | . . . . . . Machines Disabled . | . . . . . . Actions | -11 -10 -10 -10 -9 -8 --------- Run | Yrd Mat Min Exi Min Mat Total 5161 | 145 408 200 605 848 2955 Wait 2492 | . 32 . . 88 2372 Move 2466 | 126 355 200 594 684 507 Hop . | . . . . . . Pick Up 54 | 3 4 . 3 20 24 Fast Attach 13 | 6 1 . . 2 4 Attach 27 | . . . . 5 22 Detach 2 | . . . . . 2 Swap 17 | 6 . . 3 4 4 Drop 13 | . . . 1 8 4 Fire 63 | 4 13 . . 34 12 Melee 4 | . . . . . 4 Ram . | . . . . . . Kick 3 | . . . . 3 . Crush 3 | . 3 . . . . Escape Stasis . | . . . . . . Rewire 4 | . . . 4 . . Trap . | . . . . . . Miscellaneous . | . . . . . . Route ------- -11/Scrapyard -10/Materials (discovered 3 exits: [*Mat] / [*Min x2]) -10/Mines -10/Exiles (discovered 2 exits: [*Min x2]) -9/Mines -8/Materials History --------- Turn | Location | Event 37 | -11/Scrapyard | Discovered new exit (range 16) 196 | -11/Scrapyard | Entered Materials 289 | -10/Materials | Met 8R-AWN 311 | -10/Materials | Build established: Mutant 319 | -10/Materials | Repaired Corrupted Imp. Terrain Scanner 370 | -10/Materials | Discovered new exit (range 9) 689 | -10/Materials | Discovered new exit (range 14) 716 | -10/Materials | Discovered new exit (range 16) 833 | -10/Materials | Entered Mines 835 | -10/Mines | Followed 8R-AWN into the Mines 1147 | -10/Mines | Discovered new exit (range 5) 1153 | -10/Mines | Entered Exiles 1181 | -10/Exiles | Discovered new exit (range 15) 1200 | -10/Exiles | Welcomed by 8R-AWN 1229 | -10/Exiles | Met EX-HEX 1340 | -10/Exiles | Met EX-DEC 1403 | -10/Exiles | Learned location of Zion (-6) 1512 | -10/Exiles | Discovered new exit (range 12) 1648 | -10/Exiles | Met EX-BIN 1821 | -10/Exiles | Aligned with FarCom system 1823 | -10/Exiles | Given EX-Vault access code 1861 | -10/Exiles | Opened EX-Vault 1869 | -10/Exiles | Found Prototype Device 1904 | -10/Exiles | Warned to stay clear of 0b10 Research branches 2116 | -10/Exiles | Left Exiles lab with Supersonic Drone Bay 2116 | -10/Exiles | Entered Mines 2327 | -9/Mines | Assembled infested the area 2353 | -9/Mines | Received a Rocket Launcher from a helpful Derelict 3064 | -9/Mines | Core integrity fell below 50% 3092 | -9/Mines | Lost 3 parts (1u2w) 3541 | -9/Mines | Found a damaged Exp. Sensor Array with a note attached 3551 | -9/Mines | Found Prototype Device 3825 | -9/Mines | Discovered new exit (range 5) 3838 | -9/Mines | Entered Materials 3838 | -8/Materials | Evolved 4 slots: Propulsion x2, Utility x2 3989 | -8/Materials | Identified Supersonic Drone Bay 3990 | -8/Materials | Identified Exp. Sensor Array 4294 | -8/Materials | Build established: Scavenger-Skirmisher 4350 | -8/Materials | Repaired Hcp. Storage Unit 5636 | -8/Materials | Build established: Scavenger-Mutant 6764 | -8/Materials | Core integrity fell below 50% 6785 | -8/Materials | Core integrity fell below 20% 6796 | -8/Materials | Destroyed by H-61 Shepherd with Heavy Assault Cannon Last Messages --------------- 06784_ Aluminum Leg destroyed. 06785_ K-01 Serf collects debris. 06785_ C-30 ARC bursts open, deploying its payload. 06785_ S-10 Pest unfolds itself. 06785_ R-06 Scavenger collects Corrupted Particle Gun. 06786_ Lgt. Ion Engine destroyed. 06786_ Aluminum Leg destroyed. 06786_ Knocked back. 06787_ Aluminum Leg destroyed. 06788_ K-01 Serf collects debris. 06789_ R-06 Scavenger collects Corrupted Aluminum Leg. 06790_ Penetrated by Slug. 06791_ K-01 Serf collects debris. 06792_ The unstable cave ceiling collapses. 06793_ Penetrated by Slug. 06794_ Lgt. Armor Plating destroyed. 06795_ K-01 Serf collects debris. 06796_ The unstable cave ceiling collapses. 06796_ Lgt. Armor Plating destroyed. 06796_ U-05 Engineer builds a Wall. Map ----- +----------------------------------------------------+ | """"" # #???????#### #??????????????? | | # #??????????# #??????????????? | | ###+##### #??????????# #??????????????? | | ?# #??????????# #??????????????? | | ## #??????????# #??????????????? | | ! #??????????# #??????????????? | | ! #?????????## #??????????????? | | ! #?????????## ##?????????????? | | = #?????????## ###########????? | | #?????#???## # #????? | | """ """ #????? ##### # """ """ #????? | | """ """ #??#### ## # """ """ #????? | | ## """ """ #??### # #u # """ """ #????? | | ?# #?## # + #????? | | ?# #?# % # #????? | | ?# """ """ #?#= s %# #????? | | ?# """ """ ???# s # = #????? | | ## """ """?????# sw###########????? | | s ???# #s #??????????????? | | ## s ??# k% #??########????? | | ?####/### s ####w??## % % #?? #????? | | ???? T?? #??????#; #?S #????? | | ????? ??? s#??#????# % #?"" ?????? | | ?????""???? #??# ### # "" """ ?????? | | ?????""???? #??# u t % h % # """ ?????? | | ???????????????# %@ra """ ?????? | | ???????????????# %% # #????? | | ???????????????########### # #????? | | ???????????????????????? g ##########????? | | ??????????????????????? ! H ??????????? | | ?????????????????????? ???????? | | ????????????????????? # " ????????? | | ????????????????????# !!! " ""???????? | | ????????????#???????# !!!# # "????????? | | ??????????? #???????# !^!# * ?????????? | | ?????????? ????????# ^ # # ????????? | | ????????? ??????????# ! # # ????????? | | ???????? ??????????########## #####??????????? | | ??????? ????????????????????# ??????????????? | | ###### ??????????????????????? ???????????????? | | ??????????????????????????????????????????? | | #???????????????????????????????????????????? | | T #???????????????????????????????????????????? | | #???????????????????????????????????????????? | | #???????????????????????????????????????????? | | #???????????????????????????????????????????? | | #???????????????????????????????????????????? | | #???????????????????????????????????????????? | | #???????????????????????????????????????????? | | #####???????????????????????????????????????????? | +----------------------------------------------------+ Best States ------------- Heat Dissipation 31 Energy Generation 10 Energy Capacity 250 Matter Stores 300 Matter Capacity 300 Sight Range 16 Robot Scan Range 20 Terrain Scan Density 10 Base Temperature (-) 100 Armor Coverage 300 Evasion (%) 50 Recoil Reduction 2 Offensive Hacking 10 Item Schematics ----------------- None Robot Schematics ------------------ None Fabricated ------------ Nothing Alien Tech Used ----------------- None Achievements -------------- I Survived The Infestation Librarian Challenges ------------ None Game ------ Seed ReinforcedLaserAutocannon Manual? 0 Play Time 01:04:25 Cumulative 3.3 hours Start 2024.04.01 @ 11:13:05 End 2024.04.02 @ 10:46:15 Sessions 5 Manual Loads 0 Difficulty Rogue Special Mode None Game No. 3 Rogue 3 Adventurer 0 Explorer 0 Win Type - Total 0 Types 0/0/0/0/0/0/0/0/0 Lore% 12 Gallery% 4 Achievement% 6 Wizard Run 0 Options --------- Layout 0 ASCII 0 Keyboard 1 Movement Vi Keybinds 0 Fullscreen 1 Font 18/Terminus Map View 76x50 Zoom Use 0% Tactical HUD 1 Map Filters NONE Filters NONE Steam 1 RUN: 933303ab-fe3b-4e92-a26f-f2902b595996